Cogmind - Beta 14 @@@ ROGUE MODE // 2024.11.08 @ 18:18:02 Player: OG DANIEL Result: Destroyed by G-47 Trooper with Particle Gun Performance ------------- Evolutions (2) 1000 Regions Visited (5) 1000 Robots Destroyed (53) 265 Value Destroyed (1742) 1742 Prototype IDs (1) 20 Alien Tech Used (0) 0 Bonus (964) 964 TOTAL SCORE: 4991 Bonus ------- High Alert Combat Kills 164 Follower Combat Kills 600 Entered Garrisons 200 Cogmind --------- Core Integrity 0/550 Matter 407/500 Energy 100/100 System Corruption 0% Temperature Cool (27) Movement Walking (120) Location -8/Materials Parts ------- > --- POWER (2) -------- (None) > --- PROPULSION (4) --- Carbon-fiber Leg Carbon-fiber Leg > --- UTILITY (3) ------ Advanced Heat Sink High-capacity Matter Pod > --- WEAPON (2) ------- (None) > --- INVENTORY (5) ---- Aluminum Leg Aluminum Leg Carbon-fiber Leg Small Laser Flak Cannon Peak State ------------ > --- POWER ------------ Light Nuclear Core > --- PROPULSION ------- Carbon-fiber Leg Carbon-fiber Leg Carbon-fiber Leg Carbon-fiber Leg > --- UTILITY ---------- Advanced Heat Sink Medium Storage Unit High-capacity Matter Pod > --- WEAPON ----------- Gauss Rifle Flak Cannon > --- INVENTORY -------- Light Treads Aluminum Leg Aluminum Leg Carbon-fiber Leg Reaction Control System Small Laser EM Pulse Cannon Grenade Launcher [Rating: 30] Favorites ----------- Power Light Nuclear Core Engine Ion Engine Power Core Light Nuclear Core Propulsion Aluminum Leg Treads Light Treads Leg Aluminum Leg Wheel Compact Wheel Utility Medium Storage Unit Device Seismic Detector Storage Medium Storage Unit Processor Advanced Visual Processing Unit Weapon Particle Gun Energy Gun Particle Gun Energy Cannon Beam Cannon Ballistic Gun Autogun Ballistic Cannon Flak Cannon Launcher Grenade Launcher Build | -11 -10 -9 -9 -9 -8 ------- Run | Yrd Mat Mat Sto Gar Mat Slots Evolved 4 | . . 2 . . 2 Power 1 | . . . . . 1 Propulsion 2 | . . 2 . . . Utility 1 | . . . . . 1 Weapon . | . . . . . . Parts Attached 69 | 6 3 17 8 10 25 Power 10 | 1 1 1 2 3 2 Engine 7 | 1 1 1 1 2 1 Core 3 | . . . 1 1 1 Reactor . | . . . . . . Propulsion 27 | 2 . 6 5 5 9 Treads 7 | 2 . . 3 2 . Leg 17 | . . 3 2 3 9 Wheel 3 | . . 3 . . . Hover . | . . . . . . Flight . | . . . . . . Utility 10 | 1 1 4 . . 4 Device 2 | . . 1 . . 1 Storage 3 | 1 . 1 . . 1 Processor 5 | . 1 2 . . 2 Hackware . | . . . . . . Protection . | . . . . . . Artifact . | . . . . . . Weapon 22 | 2 1 6 1 2 10 Energy Gun 7 | 2 . 1 . 1 3 Energy Cannon 4 | . 1 2 . . 1 Ballistic Gun 7 | . . 3 1 1 2 Ballistic Cannon 3 | . . . . . 3 Launcher 1 | . . . . . 1 Special Weapon . | . . . . . . Impact Weapon . | . . . . . . Slashing Weapon . | . . . . . . Piercing Weapon . | . . . . . . Special Melee Weapon . | . . . . . . Unidentified Prototypes 1 | . . 1 . . . Corrupted Parts 1 | . . 1 . . . System Corruption 5 | . . 5 . . . Parts Lost 31 | . . 7 5 2 17 Power 3 | . . . . . 3 Propulsion 16 | . . 4 3 1 8 Utility 3 | . . 1 1 . 1 Weapon 9 | . . 2 1 1 5 Highest Loss Streak 7 | . . 4 2 1 7 To Critical Strikes . | . . . . . . Average Slot Usage (%) 84 | . 88 85 84 85 79 Engine 5 | . 14 5 . 2 2 Core 3 | . . . 7 8 4 Treads 12 | . 28 10 3 20 4 Leg 16 | . . 21 7 20 26 Wheel 5 | . . 3 27 . . Device 1 | . . 2 . . 2 Storage 11 | . 14 11 11 11 12 Processor 5 | . 3 8 5 . 9 Energy Gun 8 | . 19 4 11 11 2 Energy Cannon 6 | . 8 12 . . . Ballistic Gun 6 | . . 4 10 11 5 Ballistic Cannon 1 | . . . . . 7 Peak Build Rating 30 | 6 8 16 16 13 30 Average Rating 12 | 4 6 12 12 11 20 On Entrance 8 | . 6 8 13 11 12 Naked Turns . | . . . . . . Heaviest Build 30 | 13 15 23 21 21 30 Greatest Support 60 | 40 40 42 42 40 60 Greatest Overweight (x) 2 | . . 1 2 2 1 Average Overweight (x) . | . . . . . . Largest Inventory Capacity 10 | 8 8 10 10 10 10 Average Capacity 9 | 6 8 8 10 10 9 Most Carried 10 | 6 8 10 10 10 10 Average Carried 7 | 4 7 7 7 9 8 Final Capacity 10 | 8 8 10 10 10 5 Final Carried 10 | 6 8 7 10 10 5 Class Distribution -------------------- 70% | Mutant 20% | Scavenger-Mutant 9% | Commander-Mutant Dominant Class ---------------- Mutant | -10/Materials Mutant | -9/Materials Mutant | -9/Storage Scavenger-Mutant | -9/Garrison Mutant | -8/Materials Resources | -11 -10 -9 -9 -9 -8 ----------- Run | Yrd Mat Mat Sto Gar Mat Matter Collected 1420 | 73 76 361 300 214 396 Remotely . | . . . . . . Salvage Created 1865 | . 241 503 371 361 389 Parts 112 | . 20 31 23 18 20 Haulers Intercepted . | . . . . . . Recyclers Shooed 1 | . . 1 . . . Parts Field Recycled . | . . . . . . Retrieved Matter . | . . . . . . Parts Self-Destructed . | . . . . . . Prevented . | . . . . . . Kills | -11 -10 -9 -9 -9 -8 ------- Run | Yrd Mat Mat Sto Gar Mat Combat Hostiles Destroyed 43 | . 4 12 7 10 10 Guns 26 | . 1 4 7 10 4 Cannons 15 | . 1 8 . . 6 Classes Destroyed 12 | . 5 3 1 1 2 Worker 2 | . 1 . . . 1 Builder 1 | . . . . . 1 Recycler 1 | . . . 1 . . Mechanic 1 | . 1 . . . . Operator 1 | . 1 . . . . Watcher 4 | . 2 1 . . 1 Swarmer 6 | . . 4 . 2 . Grunt 22 | . 4 1 5 6 6 Brawler 1 | . . . . 1 . Duelist 3 | . . 1 . 1 1 Sentry 10 | . . 6 2 . 2 Hunter 1 | . . . . . 1 Best Kill Streak 6 | . 5 4 6 3 4 Combat Bots Only 5 | . 2 4 5 3 4 Max Kills in Single Turn 2 | . 1 1 2 1 1 Gunslinging . | . . . . . . Exploded . | . . . . . . Melee . | . . . . . . Uniques/NPCs Destroyed . | . . . . . . Combat | -11 -10 -9 -9 -9 -8 -------- Run | Yrd Mat Mat Sto Gar Mat Hostile Shots Fired 429 | . 19 101 55 57 197 Missed 132 | . 3 32 16 10 71 Damage Taken 4564 | . 186 1029 557 525 2267 Core 998 | . 66 205 70 99 558 Absorbed by Shields . | . . . . . . Core Remaining (%) 59 | 100 73 . . 6 . Volleys Fired 180 | . 26 50 26 26 52 Largest 2 | . 2 2 2 2 2 Hottest 123 | . 110 123 88 88 107 Shots Fired 310 | . 52 67 51 51 89 Gun 214 | . 39 29 51 51 44 Cannon 96 | . 13 38 . . 45 Launcher . | . . . . . . Special . | . . . . . . Kinetic 140 | . . 23 25 25 67 Thermal 159 | . 52 33 26 26 22 Explosive . | . . . . . . Electromagnetic 11 | . . 11 . . . Robot Hit Streak 16 | . 11 16 11 11 12 Robot Miss Streak 7 | . 6 1 2 2 7 Penetration Max 1 | . . . . . 1 Secondary Targets 3 | . . . 1 2 . Max Gunslinging Chain 1 | . . . 1 1 . Shots Hit Robots 228 | . 36 53 39 34 66 Core Hits 122 | . 11 18 14 14 65 Critical Kills . | . . . . . . Critical Parts Destroyed 1 | . . . . 1 . Critical Strikes 7 | . 3 1 . 3 . Burn 6 | . 3 1 . 2 . Destroy 1 | . . . . 1 . Melee Attacks . | . . . . . . Impact . | . . . . . . Slashing . | . . . . . . Piercing . | . . . . . . Sneak Attacks . | . . . . . . Combat Hostiles . | . . . . . . Follow-up Attacks . | . . . . . . Damage Inflicted 3830 | . 485 853 628 523 1341 Guns 2276 | . 348 306 596 523 503 Cannons 1487 | . 137 530 . . 820 Explosions . | . . . . . . Melee . | . . . . . . Ramming 67 | . . 17 32 . 18 Kinetic 1775 | . . 243 258 237 1037 Thermal 1792 | . 485 397 338 286 286 Explosive . | . . . . . . Electromagnetic 196 | . . 196 . . . Impact . | . . . . . . Slashing . | . . . . . . Piercing . | . . . . . . Highest Corruption 9 | . . 5 8 9 . Average Corruption 6 | . . 5 6 8 . Corruption Purged . | . . . . . . Corruption Blocked . | . . . . . . Effects 40 | . . 12 16 12 . Message Errors 10 | . . 3 3 4 . Matter Fused 7 | . . 2 3 2 . Heat Flow Errors 4 | . . 2 1 1 . Energy Discharges 6 | . . 2 3 1 . Data Loss (minor) 9 | . . 1 5 3 . Data Loss (major) 2 | . . . 1 1 . Misfires 1 | . . 1 . . . Alerts 1 | . . 1 . . . Overload Shots . | . . . . . . Overflow Damage 1 | . . 1 . . . Projectiles 1 | . . 1 . . . Explosions . | . . . . . . Melee . | . . . . . . Knockbacks 39 | . . . . . 39 Impact . | . . . . . . Kinetic 31 | . . . . . 31 Secondary 8 | . . . . . 8 Self-Inflicted Damage 13 | . . . 13 . . Shots . | . . . . . . Rammed 6 | . . . 6 . . Targets Rammed 18 | . . 6 6 . 6 Kicked 12 | . . 6 . . 6 Crushed . | . . . . . . Highest Temperature 417 | . 417 351 285 254 173 Average Temperature 112 | . 175 114 79 109 56 Received Heat Transfer 1473 | . 102 171 249 213 738 Effects 4 | . 3 . . 1 . Shutdowns 2 | . 2 . . . . Energy Bleed 2 | . 1 . . 1 . Siege Activations . | . . . . . . Robots Corrupted . | . . . . . . Combat Hostiles . | . . . . . . Parts Fried 1 | . . 1 . . . Impact Corruptions . | . . . . . . Robots Melted 2 | . 2 . . . . Combat Hostiles 2 | . 2 . . . . Parts Melted 6 | . 2 1 1 2 . Heat Transferred 4679 | . 1471 925 814 840 629 Parts Sabotaged . | . . . . . . Parts Stolen . | . . . . . . Parts Stripped . | . . . . . . Power Chain Reactions . | . . . . . . Alert | -11 -10 -9 -9 -9 -8 ------- Run | Yrd Mat Mat Sto Gar Mat Peak Influence 700 | . 189 245 477 700 560 Initial 341 | . . . 72 308 341 Average 218 | . 93 70 263 489 425 Maximum Alert Level 3 | . . 1 2 3 2 Low Security (%) 53 | 100 100 86 26 . . Level 1 24 | . . 13 51 34 39 Level 2 20 | . . . 22 53 60 Level 3 1 | . . . . 11 . Level 4 . | . . . . . . Level 5 . | . . . . . . High Security . | . . . . . . Max Security . | . . . . . . Squads Dispatched 6 | . 1 . 2 . 3 Investigation 1 | . 1 . . . . Extermination . | . . . . . . Reinforcement 4 | . . . 1 . 3 Assault . | . . . . . . Garrison 1 | . . . 1 . . Intercept . | . . . . . . Searches Triggered . | . . . . . . Construction Impeded 1 | . . . . . 1 Haulers Reinforced . | . . . . . . Active Scanning Responses . | . . . . . . Cargo Convoy Interrupts . | . . . . . . Stealth | -11 -10 -9 -9 -9 -8 --------- Run | Yrd Mat Mat Sto Gar Mat Distress Signals 1 | . . . 1 . . Communications Jammed . | . . . . . . Distress Signals . | . . . . . . Times Spotted 99 | . 11 20 21 18 29 Peak Tracking Total 11 | . 3 7 5 5 11 Tactical Retreats 7 | . 1 4 . . 2 Traps | -11 -10 -9 -9 -9 -8 ------- Run | Yrd Mat Mat Sto Gar Mat Traps Triggered 1 | . 1 . . . . Indirectly . | . . . . . . Trap Hack Attempts . | . . . . . . Triggered . | . . . . . . Disarmed . | . . . . . . Reprogrammed . | . . . . . . Reused . | . . . . . . Traps Extracted . | . . . . . . Installed . | . . . . . . Triggered . | . . . . . . Machines | -11 -10 -9 -9 -9 -8 ---------- Run | Yrd Mat Mat Sto Gar Mat Machines Disabled 3 | . 1 1 1 . . Max in Single Turn 1 | . 1 1 1 . . Machines Repaired . | . . . . . . Machines Dismantled . | . . . . . . Machines Sabotaged . | . . . . . . Overloaded Fab Kills . | . . . . . . Hacking | -11 -10 -9 -9 -9 -8 --------- Run | Yrd Mat Mat Sto Gar Mat Machines Accessed 11 | . 1 4 4 1 1 Terminals 10 | . 1 4 3 1 1 Fabricators . | . . . . . . Repair Stations . | . . . . . . Recycling Units . | . . . . . . Scanalyzers . | . . . . . . Garrison Access 1 | . . . 1 . . Total Hacks 22 | . 2 11 5 2 2 Successful 11 | . . 8 3 . . Failed 11 | . 2 3 2 2 2 Catastrophic 1 | . . . 1 . . Database Lockouts . | . . . . . . Manual 15 | . 1 7 3 2 2 Terminals 21 | . 2 11 4 2 2 Fabricators . | . . . . . . Repair Stations . | . . . . . . Recycling Units . | . . . . . . Scanalyzers . | . . . . . . Garrison Access 1 | . . . 1 . . Terminal Hacks 4 | . . 4 . . . Record 1 | . . 1 . . . Alert Level 2 | . . 2 . . . Unreport Threat 1 | . . 1 . . . Fabricator Hacks . | . . . . . . Repair Station Hacks . | . . . . . . Recycling Unit Hacks . | . . . . . . Scanalyzer . | . . . . . . Garrison Access Hacks 1 | . . . 1 . . Unlock Access 1 | . . . 1 . . Unauthorized Hacks 6 | . . 4 2 . . Terminals 6 | . . 4 2 . . Botnet 6 | . . 4 2 . . Fabricators . | . . . . . . Repair Stations . | . . . . . . Recycling Units . | . . . . . . Scanalyzers . | . . . . . . Garrison Access . | . . . . . . Data Cores Recovered . | . . . . . . Used . | . . . . . . Hacking Detections 6 | . . 3 2 . 1 Full Trace Events . | . . . . . . Feedback Events . | . . . . . . Feedback Blocked . | . . . . . . Robot Schematics Acquired . | . . . . . . Robots Built . | . . . . . . Authchips . | . . . . . . Time . | . . . . . . Total Robot Build Rating . | . . . . . . Part Schematics Acquired . | . . . . . . Parts Built . | . . . . . . Authchips . | . . . . . . Time . | . . . . . . Total Part Build Rating . | . . . . . . Parts Repaired . | . . . . . . Time . | . . . . . . Parts Recycled . | . . . . . . Recycled Matter . | . . . . . . Retrieved Matter . | . . . . . . Retrieved Components . | . . . . . . Parts Scanalyzed . | . . . . . . Part Schematics Acquired . | . . . . . . Parts Damaged . | . . . . . . Bothacking | -11 -10 -9 -9 -9 -8 ------------ Run | Yrd Mat Mat Sto Gar Mat Used RIF Installer . | . . . . . . Robots Hacked . | . . . . . . Non-combat . | . . . . . . Combat . | . . . . . . Robot Hacks Applied . | . . . . . . Relay Couplers Released . | . . . . . . Fabnet Peak Effective % . | . . . . . . Robots Rewired . | . . . . . . Allies Hacked . | . . . . . . Hacks Repelled . | . . . . . . Allies | -11 -10 -9 -9 -9 -8 -------- Run | Yrd Mat Mat Sto Gar Mat Total Allies 10 | . . . 10 . . Largest Group 10 | . . . 10 6 1 Highest-Rated Group 88 | . . . 88 56 16 Highest-Rated Ally 16 | . . . 16 16 16 Total Orders . | . . . . . . Ally Attacks 115 | . . . 64 45 6 Total Damage 1156 | . . . 619 472 65 Kills 25 | . . . 15 10 . Allies Corrupted . | . . . . . . Allies Melted . | . . . . . . Intel | -11 -10 -9 -9 -9 -8 ------- Run | Yrd Mat Mat Sto Gar Mat Robot Analysis Total . | . . . . . . Derelict Logs Recovered . | . . . . . . Drone Launches . | . . . . . . Drone Recoveries . | . . . . . . Exploration | -11 -10 -9 -9 -9 -8 ------------- Run | Yrd Mat Mat Sto Gar Mat Turns Passed 3077 | 118 437 1108 485 455 474 Spaces Moved 1567 | 66 209 629 257 227 179 Core 2 | 2 . . . . . Treads 407 | 64 209 . 21 113 . Legs 833 | . . 512 28 114 179 Wheels 325 | . . 117 208 . . Hover . | . . . . . . Flight . | . . . . . . Fastest Speed 50 | 50 160 90 90 120 120 Average Speed 140 | 156 160 136 115 150 146 Slowest Speed 260 | 160 160 190 260 260 190 Overloaded Moves . | . . . . . . Propulsion Burnouts . | . . . . . . Robots Hopped . | . . . . . . Cave-ins Triggered . | . . . . . . Exploration Rate (%) 33 | 5 41 56 41 42 14 Regions Visited 5 Branch Regions 1 Pre-discovered Areas . | . . . . . . Known Exits Taken 1 | . . . 1 . . Unknown Exits Taken 3 | 1 1 1 . . . Scrap Searched . | . . . . . . Spaces Dug . | . . . . . . Terrain Destroyed 1 | . . . . . 1 Melee . | . . . . . . Projectile 1 | . . . . . 1 AOE . | . . . . . . Terrain Rammed . | . . . . . . Walls Destroyed . | . . . . . . Machines Disabled . | . . . . . . Actions | -11 -10 -9 -9 -9 -8 --------- Run | Yrd Mat Mat Sto Gar Mat Total 2132 | 78 259 808 399 291 297 Wait 247 | . 19 93 98 20 17 Move 1562 | 65 208 628 256 226 179 Hop . | . . . . . . Pick Up 29 | 7 2 7 1 5 7 Fast Attach 34 | 5 2 4 5 2 16 Attach 17 | 1 . 7 1 3 5 Detach 7 | . . 2 2 . 3 Swap 18 | . 1 6 2 5 4 Drop 20 | . 1 5 2 4 8 Fire 180 | . 26 50 26 26 52 Melee . | . . . . . . Ram 5 | . . . 5 . . Kick 12 | . . 6 . . 6 Crush 1 | . . . 1 . . Escape Stasis . | . . . . . . Rewire . | . . . . . . Trap . | . . . . . . Miscellaneous . | . . . . . . Route ------- -11/Scrapyard -10/Materials (discovered 3 exits: *Mat / [*Min x2]) -9/Materials (discovered 2 exits: [*Min] / *Sto) -9/Storage -9/Garrison -8/Materials History --------- Turn | Location | Event 9 | -11/Scrapyard | Discovered new exit (range 15) 119 | -11/Scrapyard | Entered Materials 281 | -10/Materials | Discovered new exit (range 12) 318 | -10/Materials | Build established: Mutant 378 | -10/Materials | Discovered new exit (range 6) 523 | -10/Materials | Discovered new exit (range 14) 556 | -10/Materials | Entered another Materials area 556 | -9/Materials | Evolved 2 slots: Propulsion x2 937 | -9/Materials | Discovered new exit (range 6) 1142 | -9/Materials | Lost 4 parts (2n1u1w) 1580 | -9/Materials | Discovered new exit (range 3) 1598 | -9/Materials | Core integrity fell below 50% 1664 | -9/Materials | Entered Storage 1922 | -9/Storage | Assisted by bots powering up and referring to "LRC-V3" 2053 | -9/Storage | Garrison activated, responded to threat 2120 | -9/Storage | Lost 4 allies 2121 | -9/Storage | Identified exit to Garrison 2149 | -9/Storage | Entered Garrison 2149 | -9/Garrison | Accompanied by 6 allies 2203 | -9/Garrison | Triggered checkpoint 2296 | -9/Garrison | Triggered checkpoint 2305 | -9/Garrison | Triggered checkpoint 2333 | -9/Garrison | Lost 3 allies 2365 | -9/Garrison | Triggered checkpoint 2457 | -9/Garrison | Core integrity fell below 20% 2519 | -9/Garrison | Build established: Scavenger-Mutant 2537 | -9/Garrison | Triggered checkpoint 2590 | -9/Garrison | Discovered new exit (range 10) 2604 | -9/Garrison | Entered Materials 2604 | -8/Materials | Accompanied by 1 ally 2604 | -8/Materials | Evolved 2 slots: Power x1, Utility x1 2888 | -8/Materials | Core integrity fell below 50% 2925 | -8/Materials | Lost 4 parts (3n1w) 2999 | -8/Materials | Lost 4 parts (1p2n1w) 3071 | -8/Materials | Core integrity fell below 20% 3078 | -8/Materials | Destroyed by G-47 Trooper with Particle Gun Last Messages --------------- 03048_ Destroyed Structural Scanner. 03049_ Med. Storage Unit destroyed. 03049_ Grenade Launcher destroyed. 03049_ Knocked back. 03050_ Slug penetrates U-05 Engineer. 03051_ ALERT: Construction progress impeded, dispatching reinforcements to local area. 03051_ H-61 Shepherd calls for reinforcements. 03051_ ALERT: Hostile activity reported, dispatching reinforcements to area. 03051_ Penetrated by Slug. 03054_ Acquired EM Pulse Cannon. 03059_ Lgt. Nuclear Core destroyed. 03059_ Gauss Rifle destroyed. 03059_ Knocked back. 03062_ K-01 Serf collects debris. 03067_ EM Pulse Cannon destroyed. 03069_ Acquired 6 matter. 03070_ Carbon-fiber Leg destroyed. 03074_ M-13 Machinist destroyed. 03076_ K-01 Serf collects debris. 03078_ Critical hit (Burn: +37). Map ----- +----------------------------------------------------+ | +?????????????# # " " #???????????????????? | | #?????????????# # "" #???????????????????? | | " #???????????### # """ #???????????????????? | | " #???????????#% # #???????????????????? | | " #???????????# % # #???????????????????? | | " #???????????# # = #???????????????????? | | " #???????????# =+ % #???????????????????? | | #???????????# !%# ! #???????????????????? | | #???????????# |*##########???????????????????? | | " [ #??????????## ##???????????????????????????? | | " #??????????# #???????????????????????????? | | " ############ #???????????????????????????? | | " #???????????????????????????? | | " ############ #???????????????????????????? | | #??????????# ! #???????????????????????????? | | #??????????## ##???????????????????????????? | | #???????????# #????????????????????????????? | | #####???????????# #????????????????????????????? | | ????????????????# #????????????????????????????? | | ????????????????# #????????????????????????????? | | ????????????????# #??#######???????????????????? | | ????????????????# #### #???????????????????? | | ????????????????# #???????????????????? | | ????????????????# #???????????????????? | | ????????????????# #???????????????????? | | ????????????????######## @ #???????????????????? | | ???????????????????????##k ##???????????????????? | | ????????????????????????#g #????????????????????? | | ????????????????????????#%* #????????????????????? | | ????????????????????????# #????????????????????? | | ????????????????????????# #?????####+#?????????? | | ????????????????????????#x #??? #?????????? | | ???????????????????????##Hgg## #?????????? | | ???????????????????????# ]a " ! ""????????? | | ???????????????? gg%x%# T"????????? | | ???????????? ! Tg + """ """ ""????????? | | ???????????? # """ """???????????? | | ????????????## "###### # ""? ""????????????? | | ?????????????# ???????#######? ??????????????? | | ?????????????#?????????????????#####?????????????? | | ?????????????????????????????????????????????????? | | ?????????????????????????????????????????????????? | | ?????????????????????????????????????????????????? | | ?????????????????????????????????????????????????? | | ?????????????????????????????????????????????????? | | ?????????????????????????????????????????????????? | | ?????????????????????????????????????????????????? | | ?????????????????????????????????????????????????? | | ?????????????????????????????????????????????????? | | ?????????????????????????????????????????????????? | +----------------------------------------------------+ Best States ------------- Heat Dissipation 50 Energy Generation 14 Energy Capacity 280 Matter Stores 453 Matter Capacity 500 Sight Range 20 Terrain Scan Density 10 Evasion (%) 55 Recoil Reduction 2 Item Schematics ----------------- None Robot Schematics ------------------ None Fabricated ------------ Nothing Alien Tech Used ----------------- None Achievements -------------- Everything Is Under Control Novice Programmer Challenges ------------ None Game ------ Seed CentriumSupersonicStick Manual? 0 Play Time 00:32:50 Cumulative 18.1 hours Start 2024.11.08 @ 17:35:14 End 2024.11.08 @ 18:18:02 Sessions 1 Manual Loads 0 Difficulty Rogue Special Mode None Game No. 58 Rogue 58 Adventurer 0 Explorer 0 Win Type - Total 0 Types 0/0/0/0/0/0/0/0/0 Lore% 7 Gallery% 18 Achievement% 16 Wizard Run 0 Options --------- Layout 0 ASCII 0 Keyboard 0 Movement Numpad Keybinds 0 Fullscreen 0 Font 16/SmallcapsGlow Map View 88x55 Zoom Use 0% Tactical HUD 1 Map Filters NONE Filters NONE Steam 1 RUN: 3a83b6ac-dc11-472d-9630-9279840a145b